[Event "*** SCC Grand Prix: Titled Tuesday Blitz"]
[Site "Chess.com"]
[Date "2020.10.13"]
[Round "10"]
[White "northridgehawk"]
[Black "PowerThinking2650"]
[Result "0-1"]
[WhiteElo "2235"]
[BlackElo "2373"]
[TimeControl "180+1"]
[EndTime "11:54:53 PDT"]
[Termination "PowerThinking2650 won by resignation"]

1. e4 {[%clk 0:03:00.9]} 1... e5 {[%clk 0:02:59.4]} 2. Nf3 {[%clk 0:03:00.5]}
2... Nc6 {[%clk 0:02:59.1]} 3. Bb5 {[%clk 0:03:00.5]} 3... a6 {[%clk 0:02:58.5]}
4. Ba4 {[%clk 0:02:59]} 4... Nf6 {[%clk 0:02:58.2]} 5. d3 {[%clk 0:02:58.2]}
5... b5 {[%clk 0:02:57.1]} 6. Bb3 {[%clk 0:02:58.2]} 6... Be7 {[%clk 0:02:58]}
7. Nc3 {[%clk 0:02:58.1]} 7... d6 {[%clk 0:02:57.6]} 8. Nd5 {[%clk 0:02:57]}
8... O-O {[%clk 0:02:56.2]} 9. c3 {[%clk 0:02:57]} 9... Na5 {[%clk 0:02:55.7]}
10. Bc2 {[%clk 0:02:52.4]} 10... Nxd5 {[%clk 0:02:54.5]} 11. exd5 {[%clk
0:02:51.9]} 11... c5 {[%clk 0:02:48.3]} 12. b4 {[%clk 0:02:46.1]} 12... Nb7
{[%clk 0:02:47.7]} 13. a4 {[%clk 0:02:44.4]} 13... Bd7 {[%clk 0:02:46.7]} 14.
O-O {[%clk 0:02:42.8]} 14... f5 {[%clk 0:02:39.9]} 15. Qe2 {[%clk 0:02:38.9]}
15... Bf6 {[%clk 0:02:36.8]} 16. Bd2 {[%clk 0:02:34.7]} 16... cxb4 {[%clk
0:02:24]} 17. cxb4 {[%clk 0:02:31.1]} 17... e4 {[%clk 0:02:23.8]} 18. dxe4
{[%clk 0:02:29.6]} 18... Bxa1 {[%clk 0:02:23.4]} 19. Rxa1 {[%clk 0:02:30.5]}
19... fxe4 {[%clk 0:02:23.7]} 20. Bxe4 {[%clk 0:02:29.1]} 20... Qf6 {[%clk
0:02:17.4]} 21. Rc1 {[%clk 0:02:17.8]} 21... Rac8 {[%clk 0:02:14.8]} 22. Rxc8
{[%clk 0:02:17.1]} 22... Rxc8 {[%clk 0:02:15.7]} 23. axb5 {[%clk 0:02:12.7]}
23... Bxb5 {[%clk 0:02:11.9]} 24. Qe1 {[%clk 0:02:09.7]} 24... h6 {[%clk
0:02:09.4]} 25. h3 {[%clk 0:02:09.2]} 25... Nd8 {[%clk 0:02:07.3]} 26. Qb1
{[%clk 0:02:06.9]} 26... Nf7 {[%clk 0:02:05]} 27. Bf5 {[%clk 0:02:05.9]} 27...
Rc7 {[%clk 0:02:01.6]} 28. Be6 {[%clk 0:02:05.8]} 28... Kh8 {[%clk 0:01:56.1]}
29. Be3 {[%clk 0:02:05.1]} 29... Ne5 {[%clk 0:01:55]} 30. Nd4 {[%clk 0:02:01.3]}
30... Nc4 {[%clk 0:01:45.4]} 31. Qe4 {[%clk 0:01:51.6]} 31... Nxe3 {[%clk
0:01:41.4]} 32. fxe3 {[%clk 0:01:48.5]} 32... Rc1+ {[%clk 0:01:40.7]} 33. Kh2
{[%clk 0:01:48.3]} 33... Qe5+ {[%clk 0:01:41]} 34. Qxe5 {[%clk 0:01:47.4]} 34...
dxe5 {[%clk 0:01:41.9]} 35. Nf3 {[%clk 0:01:44]} 35... e4 {[%clk 0:01:41.5]} 36.
Nd2 {[%clk 0:01:43.1]} 36... Re1 {[%clk 0:01:36.2]} 37. Nxe4 {[%clk 0:01:41.9]}
37... Rxe3 {[%clk 0:01:36.1]} 38. Nc5 {[%clk 0:01:36.3]} 38... Bc4 {[%clk
0:01:30.3]} 39. Kg1 {[%clk 0:01:33.2]} 39... Re1+ {[%clk 0:01:26.6]} 40. Kf2
{[%clk 0:01:32.9]} 40... Rb1 {[%clk 0:01:26.3]} 41. Ke3 {[%clk 0:01:32.2]} 41...
Rxb4 {[%clk 0:01:23.9]} 42. Kd4 {[%clk 0:01:32.2]} 42... Bb5+ {[%clk 0:01:16]}
43. Ke5 {[%clk 0:01:31.8]} 43... a5 {[%clk 0:01:06.2]} 44. d6 {[%clk 0:01:31.4]}
44... a4 {[%clk 0:01:05.9]} 45. Ne4 {[%clk 0:01:19.3]} 45... a3 {[%clk
0:00:57.2]} 46. Nc3 {[%clk 0:01:19.1]} 46... Bc6 {[%clk 0:00:55.5]} 47. g4
{[%clk 0:01:17.1]} 47... Rb2 {[%clk 0:00:45.4]} 48. Kd4 {[%clk 0:01:13.2]} 48...
Rc2 {[%clk 0:00:37.7]} 49. Kd3 {[%clk 0:01:11]} 49... Rh2 {[%clk 0:00:36.1]} 50.
g5 {[%clk 0:01:07.5]} 50... hxg5 {[%clk 0:00:35.6]} 51. Kc4 {[%clk 0:01:02.3]}
51... a2 {[%clk 0:00:34.3]} 52. Nxa2 {[%clk 0:01:01.2]} 52... Rxa2 {[%clk
0:00:35]} 53. Kc5 {[%clk 0:01:00.8]} 53... Rc2+ {[%clk 0:00:35]} 54. Kb6 {[%clk
0:01:00.5]} 54... g6 {[%clk 0:00:31.5]} 55. d7 {[%clk 0:00:56.5]} 55... Bxd7
{[%clk 0:00:31.4]} 56. Bxd7 {[%clk 0:00:57.4]} 56... Kg7 {[%clk 0:00:31.1]} 57.
Bg4 {[%clk 0:00:58.3]} 57... Rc3 {[%clk 0:00:30.4]} 58. Kb5 {[%clk 0:00:58.4]}
58... Kf6 {[%clk 0:00:30.8]} 59. Kb4 {[%clk 0:00:59.3]} 59... Re3 {[%clk
0:00:29.3]} 60. Kc4 {[%clk 0:00:59.5]} 60... Ke5 {[%clk 0:00:29.7]} 61. Bd7
{[%clk 0:00:57]} 61... Kf4 {[%clk 0:00:27.7]} 62. Kd4 {[%clk 0:00:55.8]} 62...
Re1 {[%clk 0:00:27]} 63. Bc8 {[%clk 0:00:55.3]} 63... Rd1+ {[%clk 0:00:26.4]}
64. Kc3 {[%clk 0:00:55.4]} 64... Rc1+ {[%clk 0:00:26.6]} 65. Kd2 {[%clk
0:00:54.1]} 65... Rxc8 {[%clk 0:00:27.5]} 0-1

[Event "*** SCC Grand Prix: Titled Tuesday Blitz"]
[Site "Chess.com"]
[Date "2020.10.13"]
[Round "10"]
[White "Gusarov91"]
[Black "WildTricks"]
[Result "1-0"]
[WhiteElo "2575"]
[BlackElo "2442"]
[TimeControl "180+1"]
[EndTime "11:55:07 PDT"]
[Termination "Gusarov91 won on time"]

1. d4 {[%clk 0:03:00.9]} 1... f5 {[%clk 0:02:59.1]} 2. Nf3 {[%clk 0:03:01.4]}
2... Nf6 {[%clk 0:02:59.5]} 3. c4 {[%clk 0:03:01.7]} 3... d6 {[%clk 0:02:59.3]}
4. g3 {[%clk 0:03:01.5]} 4... g6 {[%clk 0:02:59.1]} 5. Bg2 {[%clk 0:03:01.9]}
5... Bg7 {[%clk 0:02:59.7]} 6. O-O {[%clk 0:03:02.6]} 6... O-O {[%clk 0:03:00]}
7. Nc3 {[%clk 0:03:02]} 7... Qe8 {[%clk 0:02:59.9]} 8. Nb5 {[%clk 0:03:01.7]}
8... Na6 {[%clk 0:02:55.5]} 9. d5 {[%clk 0:03:02]} 9... Bd7 {[%clk 0:02:48.2]}
10. a4 {[%clk 0:03:00.7]} 10... c6 {[%clk 0:02:45.8]} 11. Nc3 {[%clk 0:02:53.9]}
11... Rc8 {[%clk 0:02:33.2]} 12. Nd4 {[%clk 0:02:53.1]} 12... h6 {[%clk
0:02:23.9]} 13. a5 {[%clk 0:02:51.2]} 13... g5 {[%clk 0:02:20.3]} 14. Rb1 {[%clk
0:02:37]} 14... Kh8 {[%clk 0:02:08]} 15. e4 {[%clk 0:02:31.1]} 15... cxd5 {[%clk
0:01:28.2]} 16. cxd5 {[%clk 0:02:23.3]} 16... fxe4 {[%clk 0:01:07.6]} 17. Ne6
{[%clk 0:02:12.8]} 17... Bxe6 {[%clk 0:01:02]} 18. dxe6 {[%clk 0:02:11.6]} 18...
Nc5 {[%clk 0:00:55.9]} 19. Be3 {[%clk 0:02:09.3]} 19... Qg6 {[%clk 0:00:37.9]}
20. Bd4 {[%clk 0:01:44.7]} 20... Nxe6 {[%clk 0:00:25.1]} 21. Bxf6 {[%clk
0:01:39.5]} 21... Bxf6 {[%clk 0:00:20.5]} 22. Bxe4 {[%clk 0:01:39.4]} 22... Qg7
{[%clk 0:00:19.4]} 23. Bxb7 {[%clk 0:01:36.9]} 23... Rb8 {[%clk 0:00:18.9]} 24.
Bd5 {[%clk 0:01:29.1]} 24... Nc5 {[%clk 0:00:16.9]} 25. Qc2 {[%clk 0:01:17.7]}
25... Bd4 {[%clk 0:00:11.4]} 26. Rbd1 {[%clk 0:01:08.1]} 26... e5 {[%clk
0:00:10.3]} 27. b3 {[%clk 0:01:02.9]} 27... Rf6 {[%clk 0:00:09.7]} 28. Ne2
{[%clk 0:00:57.4]} 28... Ne6 {[%clk 0:00:04.5]} 29. Bxe6 {[%clk 0:00:57]} 29...
Rxe6 {[%clk 0:00:05.4]} 30. Nxd4 {[%clk 0:00:57.5]} 30... exd4 {[%clk
0:00:06.3]} 31. Qc4 {[%clk 0:00:58.2]} 31... Re4 {[%clk 0:00:05.4]} 32. Qd5
{[%clk 0:00:55.2]} 32... Qe5 {[%clk 0:00:04.5]} 33. Qc6 {[%clk 0:00:49.9]} 33...
Rf8 {[%clk 0:00:03.4]} 34. Qa4 {[%clk 0:00:43.9]} 34... Kg7 {[%clk 0:00:02.6]}
35. Rd3 {[%clk 0:00:41.7]} 35... Rf7 {[%clk 0:00:02.9]} 36. Qc4 {[%clk
0:00:39.7]} 36... Re1 {[%clk 0:00:02.1]} 37. Qxd4 {[%clk 0:00:38.8]} 37... Rxf1+
{[%clk 0:00:01.7]} 38. Kxf1 {[%clk 0:00:39.4]} 38... Qxd4 {[%clk 0:00:01.6]} 39.
Rxd4 {[%clk 0:00:39.9]} 39... Rb7 {[%clk 0:00:02]} 40. Rxd6 {[%clk 0:00:39.7]}
40... Rxb3 {[%clk 0:00:01.9]} 41. Rd7+ {[%clk 0:00:40.4]} 41... Kg6 {[%clk
0:00:02.4]} 42. Rxa7 {[%clk 0:00:41.3]} 42... Kf5 {[%clk 0:00:02.6]} 43. h3
{[%clk 0:00:41.2]} 43... h5 {[%clk 0:00:01.6]} 44. a6 {[%clk 0:00:35.7]} 44...
Ra3 {[%clk 0:00:01.6]} 45. Ra8 {[%clk 0:00:35.2]} 45... Kg6 {[%clk 0:00:01.2]}
46. Kg2 {[%clk 0:00:28]} 1-0

[Event "*** SCC Grand Prix: Titled Tuesday Blitz"]
[Site "Chess.com"]
[Date "2020.10.13"]
[Round "10"]
[White "MrChampion_Coach"]
[Black "UCantHandleDenker"]
[Result "0-1"]
[WhiteElo "2372"]
[BlackElo "2543"]
[TimeControl "180+1"]
[EndTime "11:55:09 PDT"]
[Termination "UCantHandleDenker won by resignation"]

1. d4 {[%clk 0:03:00.9]} 1... Nf6 {[%clk 0:02:59.2]} 2. c4 {[%clk 0:03:00.6]}
2... d6 {[%clk 0:02:59.2]} 3. Nc3 {[%clk 0:02:51.9]} 3... Nbd7 {[%clk
0:02:59.7]} 4. Nf3 {[%clk 0:02:44.7]} 4... e5 {[%clk 0:02:59.6]} 5. e4 {[%clk
0:02:43.9]} 5... Be7 {[%clk 0:02:59]} 6. h3 {[%clk 0:02:43.4]} 6... O-O {[%clk
0:02:58.4]} 7. Be3 {[%clk 0:02:43.3]} 7... exd4 {[%clk 0:02:51.2]} 8. Bxd4
{[%clk 0:02:41.7]} 8... Re8 {[%clk 0:02:49.6]} 9. Qc2 {[%clk 0:02:41]} 9... c6
{[%clk 0:02:37.7]} 10. Bd3 {[%clk 0:02:31]} 10... Bf8 {[%clk 0:02:30.4]} 11.
O-O-O {[%clk 0:02:26.1]} 11... Qc7 {[%clk 0:02:29.9]} 12. Kb1 {[%clk 0:02:21.9]}
12... Ne5 {[%clk 0:02:27.8]} 13. Be2 {[%clk 0:02:13.9]} 13... Be6 {[%clk
0:02:23.9]} 14. c5 {[%clk 0:02:00.8]} 14... Nfd7 {[%clk 0:02:14.8]} 15. cxd6
{[%clk 0:01:52.4]} 15... Bxd6 {[%clk 0:02:14.1]} 16. Nxe5 {[%clk 0:01:50.8]}
16... Bxe5 {[%clk 0:02:07.3]} 17. Bxe5 {[%clk 0:01:48.2]} 17... Qxe5 {[%clk
0:02:05.5]} 18. g3 {[%clk 0:01:47.8]} 18... Nb6 {[%clk 0:01:41.2]} 19. f4 {[%clk
0:01:41.6]} 19... Qa5 {[%clk 0:01:40.5]} 20. b3 {[%clk 0:01:17.3]} 20... Rad8
{[%clk 0:01:37.6]} 21. Bg4 {[%clk 0:01:02.4]} 21... Bxg4 {[%clk 0:01:31.6]} 22.
hxg4 {[%clk 0:01:01.1]} 22... Qb4 {[%clk 0:01:27.7]} 23. e5 {[%clk 0:00:55.5]}
23... Rxd1+ {[%clk 0:01:19.9]} 24. Nxd1 {[%clk 0:00:51.4]} 24... g6 {[%clk
0:01:14]} 25. Nf2 {[%clk 0:00:51]} 25... Nd5 {[%clk 0:01:11.4]} 26. Ne4 {[%clk
0:00:50.7]} 26... Qxe4 {[%clk 0:01:10.9]} 27. Qxe4 {[%clk 0:00:41.2]} 27... Nc3+
{[%clk 0:01:10.7]} 28. Kc2 {[%clk 0:00:39.8]} 28... Nxe4 {[%clk 0:01:11.6]} 29.
b4 {[%clk 0:00:38.8]} 29... Nxg3 {[%clk 0:01:10.2]} 30. Re1 {[%clk 0:00:38.3]}
30... h5 {[%clk 0:01:08.1]} 31. Re3 {[%clk 0:00:38.2]} 31... h4 {[%clk
0:01:01.5]} 32. Rd3 {[%clk 0:00:26.7]} 32... Kg7 {[%clk 0:00:59.6]} 33. Kd1
{[%clk 0:00:23.8]} 33... h3 {[%clk 0:00:54]} 34. Rxg3 {[%clk 0:00:22]} 34... h2
{[%clk 0:00:54.1]} 35. Rh3 {[%clk 0:00:20.2]} 35... Rh8 {[%clk 0:00:54]} 36.
Rxh2 {[%clk 0:00:09]} 36... Rxh2 {[%clk 0:00:51]} 37. f5 {[%clk 0:00:09.1]}
37... gxf5 {[%clk 0:00:50.3]} 38. gxf5 {[%clk 0:00:08.4]} 38... Rxa2 {[%clk
0:00:50.9]} 39. Ke1 {[%clk 0:00:07.1]} 39... Kf8 {[%clk 0:00:49.3]} 40. Kf1
{[%clk 0:00:05.1]} 40... Ke7 {[%clk 0:00:49.3]} 41. Ke1 {[%clk 0:00:06]} 41...
b6 {[%clk 0:00:49.3]} 42. Kf1 {[%clk 0:00:06]} 42... a5 {[%clk 0:00:49.6]} 43.
Ke1 {[%clk 0:00:06.9]} 43... axb4 {[%clk 0:00:49.4]} 44. Kd1 {[%clk 0:00:07.5]}
44... b3 {[%clk 0:00:49.4]} 45. f6+ {[%clk 0:00:07.7]} 45... Ke6 {[%clk
0:00:48.8]} 46. Kc1 {[%clk 0:00:08.6]} 46... Kxe5 {[%clk 0:00:48.8]} 47. Kb1
{[%clk 0:00:09.5]} 47... Kxf6 {[%clk 0:00:49]} 48. Kc1 {[%clk 0:00:09.1]} 48...
Ke5 {[%clk 0:00:48.9]} 49. Kb1 {[%clk 0:00:10]} 49... Rc2 {[%clk 0:00:48.2]} 50.
Ka1 {[%clk 0:00:09.1]} 50... f5 {[%clk 0:00:48.8]} 51. Kb1 {[%clk 0:00:10]}
51... f4 {[%clk 0:00:49.4]} 52. Ka1 {[%clk 0:00:07.1]} 52... f3 {[%clk
0:00:49.7]} 53. Kb1 {[%clk 0:00:08]} 53... f2 {[%clk 0:00:50.2]} 0-1

[Event "*** SCC Grand Prix: Titled Tuesday Blitz"]
[Site "Chess.com"]
[Date "2020.10.13"]
[Round "10"]
[White "kreonx"]
[Black "BursaBBSatranc"]
[Result "0-1"]
[WhiteElo "2366"]
[BlackElo "2582"]
[TimeControl "180+1"]
[EndTime "11:55:11 PDT"]
[Termination "BursaBBSatranc won on time"]

1. e4 {[%clk 0:03:00.9]} 1... e5 {[%clk 0:02:59.9]} 2. Nf3 {[%clk 0:02:53.4]}
2... Nf6 {[%clk 0:02:59.9]} 3. Nxe5 {[%clk 0:02:49.3]} 3... d6 {[%clk 0:03:00]}
4. Nf3 {[%clk 0:02:49.2]} 4... Nxe4 {[%clk 0:03:00.2]} 5. Nc3 {[%clk 0:02:50.1]}
5... Nxc3 {[%clk 0:03:00.2]} 6. dxc3 {[%clk 0:02:51]} 6... Nc6 {[%clk
0:03:00.8]} 7. Bd3 {[%clk 0:02:50.9]} 7... Be7 {[%clk 0:03:01]} 8. Be3 {[%clk
0:02:47.4]} 8... Be6 {[%clk 0:03:01.1]} 9. Qd2 {[%clk 0:02:47.2]} 9... Qd7
{[%clk 0:03:01.2]} 10. Nd4 {[%clk 0:02:43.3]} 10... Nxd4 {[%clk 0:02:58.1]} 11.
Bxd4 {[%clk 0:02:40.6]} 11... O-O {[%clk 0:02:57.8]} 12. O-O {[%clk 0:02:35]}
12... c5 {[%clk 0:02:53.3]} 13. Be3 {[%clk 0:02:33.8]} 13... d5 {[%clk
0:02:53.2]} 14. Be2 {[%clk 0:02:28.2]} 14... Rfd8 {[%clk 0:02:50.6]} 15. Bf3
{[%clk 0:02:27.5]} 15... Rac8 {[%clk 0:02:50.2]} 16. Rad1 {[%clk 0:02:16.3]}
16... Bf6 {[%clk 0:02:48.9]} 17. Bg5 {[%clk 0:02:15.1]} 17... Bxg5 {[%clk
0:02:47.1]} 18. Qxg5 {[%clk 0:02:14.5]} 18... h6 {[%clk 0:02:48]} 19. Qf4 {[%clk
0:02:04.3]} 19... Qd6 {[%clk 0:02:22.7]} 20. Qg3 {[%clk 0:01:53.6]} 20... Qxg3
{[%clk 0:02:22]} 21. fxg3 {[%clk 0:01:41]} 21... Rd6 {[%clk 0:02:15.6]} 22. Rd2
{[%clk 0:01:32.6]} 22... Rcd8 {[%clk 0:02:15.4]} 23. Rfd1 {[%clk 0:01:30.4]}
23... Kf8 {[%clk 0:02:15]} 24. Kf2 {[%clk 0:01:29.5]} 24... Ke7 {[%clk 0:02:10]}
25. a4 {[%clk 0:01:15.8]} 25... b6 {[%clk 0:02:02.2]} 26. b3 {[%clk 0:01:12.1]}
26... d4 {[%clk 0:01:53.7]} 27. c4 {[%clk 0:01:00.1]} 27... Bf5 {[%clk
0:01:46.6]} 28. Re1+ {[%clk 0:00:51.5]} 28... Kf6 {[%clk 0:01:46.6]} 29. Be4
{[%clk 0:00:47.3]} 29... Re6 {[%clk 0:01:21.5]} 30. Bxf5 {[%clk 0:00:41.7]}
30... Kxf5 {[%clk 0:01:21.4]} 31. Kf1 {[%clk 0:00:32.9]} 31... Rde8 {[%clk
0:01:19.1]} 32. Rf2+ {[%clk 0:00:32.3]} 32... Kg6 {[%clk 0:01:19.6]} 33. Rfe2
{[%clk 0:00:28.5]} 33... Kf6 {[%clk 0:01:11.3]} 34. Kf2 {[%clk 0:00:27.7]} 34...
Ke7 {[%clk 0:01:08.4]} 35. Kf3 {[%clk 0:00:19.5]} 35... Kd6 {[%clk 0:01:08.7]}
36. Re4 {[%clk 0:00:14.2]} 36... Rf6+ {[%clk 0:01:03]} 37. Kg4 {[%clk
0:00:14.4]} 37... Ree6 {[%clk 0:01:00.9]} 38. Rxe6+ {[%clk 0:00:12.8]} 38...
fxe6 {[%clk 0:01:00.8]} 39. Re2 {[%clk 0:00:12]} 39... e5 {[%clk 0:01:01.1]} 40.
h4 {[%clk 0:00:11.2]} 40... Ke6 {[%clk 0:00:59.5]} 41. h5 {[%clk 0:00:11]} 41...
Rf5 {[%clk 0:00:58.9]} 42. Kh4 {[%clk 0:00:10.4]} 42... Rf1 {[%clk 0:00:55.2]}
43. g4 {[%clk 0:00:10.3]} 43... Rf4 {[%clk 0:00:47.4]} 44. g3 {[%clk 0:00:08.8]}
44... Rf3 {[%clk 0:00:43.4]} 45. g5 {[%clk 0:00:08.1]} 45... Kf5 {[%clk
0:00:43.2]} 46. gxh6 {[%clk 0:00:07]} 46... gxh6 {[%clk 0:00:43.3]} 47. g4+
{[%clk 0:00:07.2]} 47... Kf4 {[%clk 0:00:42.8]} 48. Rg2 {[%clk 0:00:05]} 48...
Rf1 {[%clk 0:00:40.7]} 49. Rh2 {[%clk 0:00:03.6]} 49... e4 {[%clk 0:00:39.1]}
50. Kh3 {[%clk 0:00:01.9]} 50... e3 {[%clk 0:00:37.4]} 0-1

[Event "*** SCC Grand Prix: Titled Tuesday Blitz"]
[Site "Chess.com"]
[Date "2020.10.13"]
[Round "10"]
[White "wanyaland"]
[Black "Ze-Pequeno"]
[Result "0-1"]
[WhiteElo "2261"]
[BlackElo "2176"]
[TimeControl "180+1"]
[EndTime "11:55:13 PDT"]
[Termination "Ze-Pequeno won on time"]

1. d4 {[%clk 0:02:53.4]} 1... Nf6 {[%clk 0:02:59.5]} 2. c4 {[%clk 0:02:34.6]}
2... Nc6 {[%clk 0:02:57.9]} 3. Nf3 {[%clk 0:02:20.2]} 3... e6 {[%clk 0:02:56.6]}
4. g3 {[%clk 0:02:14.3]} 4... d5 {[%clk 0:02:52.2]} 5. Bg2 {[%clk 0:02:13.6]}
5... Bb4+ {[%clk 0:02:51.6]} 6. Bd2 {[%clk 0:02:13.1]} 6... dxc4 {[%clk
0:02:50]} 7. O-O {[%clk 0:02:09.4]} 7... Rb8 {[%clk 0:02:39.1]} 8. Qc2 {[%clk
0:02:04]} 8... b5 {[%clk 0:02:37]} 9. b3 {[%clk 0:01:57.6]} 9... Bxd2 {[%clk
0:02:29.8]} 10. Qxd2 {[%clk 0:01:53.8]} 10... cxb3 {[%clk 0:02:23.2]} 11. axb3
{[%clk 0:01:54.7]} 11... O-O {[%clk 0:02:07.3]} 12. Rc1 {[%clk 0:01:52.8]} 12...
Rb6 {[%clk 0:01:58.3]} 13. Nc3 {[%clk 0:01:48.9]} 13... Bb7 {[%clk 0:01:49.4]}
14. e3 {[%clk 0:01:48]} 14... a6 {[%clk 0:01:40.9]} 15. Qb2 {[%clk 0:01:44.4]}
15... Nb4 {[%clk 0:01:34.5]} 16. Qb1 {[%clk 0:01:36.7]} 16... Qa8 {[%clk
0:01:28]} 17. Ne1 {[%clk 0:01:31.3]} 17... Rc8 {[%clk 0:01:17.5]} 18. e4 {[%clk
0:01:20.9]} 18... c5 {[%clk 0:01:04.6]} 19. dxc5 {[%clk 0:01:04.7]} 19... Rxc5
{[%clk 0:01:03.9]} 20. Nd3 {[%clk 0:01:02.9]} 20... Nxd3 {[%clk 0:01:00.8]} 21.
Qxd3 {[%clk 0:01:03.8]} 21... Qc8 {[%clk 0:00:40.1]} 22. Ne2 {[%clk 0:01:00.5]}
22... Rxc1+ {[%clk 0:00:35.6]} 23. Rxc1 {[%clk 0:00:59]} 23... Rc6 {[%clk
0:00:34.5]} 24. Rxc6 {[%clk 0:00:48.5]} 24... Bxc6 {[%clk 0:00:34.4]} 25. h3
{[%clk 0:00:45.7]} 25... h6 {[%clk 0:00:33.3]} 26. Nd4 {[%clk 0:00:32.8]} 26...
Bb7 {[%clk 0:00:31.8]} 27. b4 {[%clk 0:00:32.5]} 27... Nd7 {[%clk 0:00:30.5]}
28. Nb3 {[%clk 0:00:29.6]} 28... Qc7 {[%clk 0:00:28.4]} 29. Qd4 {[%clk
0:00:24.5]} 29... Bc8 {[%clk 0:00:19.7]} 30. f4 {[%clk 0:00:19.2]} 30... e5
{[%clk 0:00:19]} 31. Qe3 {[%clk 0:00:18.6]} 31... exf4 {[%clk 0:00:18.2]} 32.
gxf4 {[%clk 0:00:19.5]} 32... Bb7 {[%clk 0:00:18.5]} 33. Qd4 {[%clk 0:00:17.6]}
33... Qb6 {[%clk 0:00:18.1]} 34. Nc5 {[%clk 0:00:15.7]} 34... Nxc5 {[%clk
0:00:18.4]} 35. bxc5 {[%clk 0:00:16.6]} 35... Qc7 {[%clk 0:00:18.8]} 36. Qd6
{[%clk 0:00:14.3]} 36... Qxd6 {[%clk 0:00:17]} 37. cxd6 {[%clk 0:00:15.2]} 37...
Kf8 {[%clk 0:00:17]} 38. Kf2 {[%clk 0:00:08]} 38... Ke8 {[%clk 0:00:16.8]} 0-1

[Event "*** SCC Grand Prix: Titled Tuesday Blitz"]
[Site "Chess.com"]
[Date "2020.10.13"]
[Round "10"]
[White "Julianos82"]
[Black "onnoelgersma"]
[Result "0-1"]
[WhiteElo "2317"]
[BlackElo "2476"]
[TimeControl "180+1"]
[EndTime "11:55:19 PDT"]
[Termination "onnoelgersma won by resignation"]

1. d4 {[%clk 0:03:00.9]} 1... d5 {[%clk 0:02:59.4]} 2. Bf4 {[%clk 0:02:59.6]}
2... Nf6 {[%clk 0:02:58.6]} 3. e3 {[%clk 0:02:58.8]} 3... c5 {[%clk 0:02:58.8]}
4. c3 {[%clk 0:02:58]} 4... e6 {[%clk 0:02:58.5]} 5. Nd2 {[%clk 0:02:57.3]} 5...
Bd6 {[%clk 0:02:57.1]} 6. Bxd6 {[%clk 0:02:57]} 6... Qxd6 {[%clk 0:02:57]} 7. f4
{[%clk 0:02:57.6]} 7... h6 {[%clk 0:02:53.8]} 8. Ngf3 {[%clk 0:02:56.4]} 8...
Rg8 {[%clk 0:02:47.2]} 9. Ne5 {[%clk 0:02:49.7]} 9... Nc6 {[%clk 0:02:47.2]} 10.
Bd3 {[%clk 0:02:46.4]} 10... Bd7 {[%clk 0:02:42]} 11. O-O {[%clk 0:02:42.9]}
11... Rb8 {[%clk 0:02:42]} 12. a4 {[%clk 0:02:40.9]} 12... a6 {[%clk 0:02:41.9]}
13. Qe2 {[%clk 0:02:36.5]} 13... Ne7 {[%clk 0:02:36.2]} 14. Ndf3 {[%clk
0:02:09.7]} 14... Ne4 {[%clk 0:02:26.4]} 15. Nxd7 {[%clk 0:01:47]} 15... Qxd7
{[%clk 0:02:20.6]} 16. Ne5 {[%clk 0:01:44.7]} 16... Qc7 {[%clk 0:02:20.5]} 17.
Bxe4 {[%clk 0:01:33.6]} 17... dxe4 {[%clk 0:02:18.8]} 18. c4 {[%clk 0:01:19.2]}
18... f6 {[%clk 0:02:02]} 19. Ng4 {[%clk 0:01:11]} 19... Nf5 {[%clk 0:01:49.3]}
20. Rad1 {[%clk 0:01:06]} 20... Rd8 {[%clk 0:01:47]} 21. d5 {[%clk 0:01:02.9]}
21... exd5 {[%clk 0:01:42.2]} 22. cxd5 {[%clk 0:01:00.7]} 22... Qe7 {[%clk
0:01:36.1]} 23. Rfe1 {[%clk 0:00:56.3]} 23... Kf7 {[%clk 0:01:26.6]} 24. Qc4
{[%clk 0:00:48.9]} 24... Kg6 {[%clk 0:01:08.1]} 25. d6 {[%clk 0:00:41.1]} 25...
Nxd6 {[%clk 0:01:01.5]} 26. Qxc5 {[%clk 0:00:40.8]} 26... Nf5 {[%clk 0:00:59.7]}
27. Qxe7 {[%clk 0:00:27]} 27... Nxe7 {[%clk 0:01:00.6]} 28. Nf2 {[%clk 0:00:27]}
28... f5 {[%clk 0:00:59.2]} 29. g4 {[%clk 0:00:27.2]} 29... Kf6 {[%clk
0:00:45.7]} 30. gxf5 {[%clk 0:00:26.7]} 30... Kxf5 {[%clk 0:00:46.6]} 31. Kf1
{[%clk 0:00:25.2]} 31... Nd5 {[%clk 0:00:41.3]} 32. Ke2 {[%clk 0:00:24.1]} 32...
Nb4 {[%clk 0:00:38.9]} 33. Rd4 {[%clk 0:00:20.3]} 33... Rxd4 {[%clk 0:00:38.1]}
34. exd4 {[%clk 0:00:21.2]} 34... Nd5 {[%clk 0:00:37.7]} 35. Nh3 {[%clk
0:00:17.1]} 35... Rc8 {[%clk 0:00:24.6]} 36. Rg1 {[%clk 0:00:14.8]} 36... Rc2+
{[%clk 0:00:22.1]} 37. Kd1 {[%clk 0:00:14.4]} 37... Rxh2 {[%clk 0:00:21.7]} 38.
Rxg7 {[%clk 0:00:14.1]} 38... Rxh3 {[%clk 0:00:21.6]} 39. Rf7+ {[%clk
0:00:13.8]} 39... Kg4 {[%clk 0:00:21.3]} 40. Rxb7 {[%clk 0:00:14.7]} 40... Kf3
{[%clk 0:00:20]} 41. Rd7 {[%clk 0:00:14.7]} 41... Ne3+ {[%clk 0:00:18.5]} 42.
Kd2 {[%clk 0:00:14.1]} 42... Rh2+ {[%clk 0:00:18.8]} 43. Kc3 {[%clk 0:00:14.2]}
43... Rc2+ {[%clk 0:00:19.3]} 44. Kb3 {[%clk 0:00:14.4]} 44... Rc8 {[%clk
0:00:19.5]} 45. f5 {[%clk 0:00:14.1]} 45... Nd1 {[%clk 0:00:17.8]} 46. f6 {[%clk
0:00:13.1]} 46... e3 {[%clk 0:00:18.3]} 47. f7 {[%clk 0:00:11.8]} 47... e2
{[%clk 0:00:18.9]} 48. Re7 {[%clk 0:00:12.3]} 48... Rf8 {[%clk 0:00:13.4]} 49.
d5 {[%clk 0:00:11.7]} 49... Kf2 {[%clk 0:00:13.4]} 50. d6 {[%clk 0:00:12]} 50...
e1=Q {[%clk 0:00:13.9]} 0-1